bitfinex-derivatives/quotes_BNBF0:USTF0_20250211
["timestamp","ask_amount","ask_price","bid_price","bid_amount"]
[1739263807957,0.31110004,642.88,641.65,0.28602128]
[1739263808156,0.31110004,642.88,641.66,0.28603374]
[1739263808457,0.31110004,642.88,641.67,0.28603374]
[1739263808656,0.31110004,642.88,641.65,0.28603374]
[1739263808855,0.31110004,642.88,641.66,0.28603374]
[1739263809055,0.31110004,642.88,641.65,0.28603374]
[1739263812961,0.31110004,642.88,641.64,2.28220082]
[1739263813564,0.31110004,642.88,641.64,1.134]
[1739263816464,0.31110004,642.88,641.65,0.28598926]
[1739263822062,1.62499757,642.87,641.65,0.28598926]
[1739263822857,1.62499757,642.87,641.64,1.134]
[1739263823062,1.62499757,642.87,641.65,0.28600077]
[1739263824157,1.62499757,642.87,641.66,0.28598753]
[1739263824360,0.31111456,642.85,641.64,0.28598753]
[1739263824562,0.31111456,642.85,641.65,0.28598753]
[1739263824762,0.31111456,642.85,641.64,0.28598753]
[1739263824965,0.31111456,642.85,641.65,1.10498753]
[1739263825265,0.31111456,642.85,641.66,0.28598753]
[1739263825862,0.31111456,642.85,641.65,0.819]
[1739263826064,0.31111456,642.85,641.66,0.28598794]
[1739263827558,0.31111456,642.85,641.65,1.956]
[1739263827758,0.31111456,642.85,641.66,0.28599271]
[1739263829262,0.31111456,642.85,641.65,1.956]
[1739263829461,0.31111456,642.85,641.66,0.28598597]
[1739263830562,0.31111456,642.85,641.75,1.14820082]
[1739263830759,0.31111456,642.85,641.76,0.28598597]
[1739263831164,0.31111456,642.85,641.75,1.14820082]
[1739263831467,0.31111456,642.85,641.76,0.28595773]
[1739263832965,0.31111456,642.85,641.75,1.14820082]
[1739263833168,0.31111456,642.85,641.77,1.14820082]
[1739263833564,0.31111456,642.85,641.78,0.28597523]
[1739263835267,0.31111456,642.85,641.78,1.43417605]
[1739263835464,0.31111456,642.85,641.78,1.14820082]
[1739263838468,0.31111456,642.85,641.66,1.14820082]
[1739263839864,0.31111456,642.85,641.67,0.28606324]
[1739263840261,1.6256428,642.84,641.67,0.28606324]
[1739263840466,0.31112908,642.82,641.67,0.28606324]
[1739263840670,0.31112908,642.82,641.66,0.28606324]
[1739263840969,0.31112908,642.82,641.67,0.28606324]
[1739263841267,0.31112908,642.82,641.68,0.28606324]
[1739263841468,0.31112908,642.82,641.66,0.28606324]
[1739263841671,0.31112908,642.82,641.67,0.28606324]
[1739263841870,0.31112908,642.82,641.65,1.956]
[1739263842071,0.31112908,642.82,641.66,0.28605481]
[1739263842464,0.31112908,642.82,641.66,1.43425563]
[1739263842666,0.31112908,642.82,641.67,0.28605481]
[1739263843673,0.31112908,642.82,641.66,1.14820082]
[1739263844774,0.31112908,642.82,641.65,3.10420082]
[1739263846976,0.31112908,642.82,641.65,1.956]
[1739263848077,0.31112908,642.82,641.66,0.28601228]
[1739263848378,1.62566179,642.81,641.66,0.28601228]
[1739263848676,0.3111436,642.79,641.66,0.28601228]
[1739263850682,0.3111436,642.79,641.65,1.956]
[1739263850982,0.3111436,642.79,641.66,0.28604101]
[1739263852578,0.3111436,642.79,641.65,1.956]
[1739263852779,0.3111436,642.79,641.66,0.28604333]
[1739263854477,0.3111436,642.79,641.67,0.28602995]
[1739263854682,0.3111436,642.79,641.68,0.28602995]
[1739263854878,0.3111436,642.79,641.65,1.956]
[1739263854879,0.3111436,642.79,641.69,0.28602995]
[1739263855082,0.3111436,642.79,641.66,0.28602995]
[1739263855281,0.3111436,642.79,641.67,0.28602995]
[1739263855480,0.3111436,642.79,641.66,0.28602995]
[1739263855677,0.3111436,642.79,641.67,0.28602995]
[1739263855985,0.3111436,642.79,641.68,0.28602995]
[1739263856179,0.3111436,642.79,641.69,0.28602995]
[1739263856379,0.3111436,642.79,641.7,0.28602995]
[1739263856582,0.3111436,642.79,641.71,0.28602995]
[1739263856784,0.3111436,642.79,641.66,0.28602995]
[1739263856984,0.3111436,642.79,641.67,0.28602995]
[1739263857177,0.3111436,642.79,641.66,0.28602995]
[1739263857984,0.3111436,642.79,641.67,0.2859879]
[1739263858185,0.3111436,642.79,641.66,0.2859879]
[1739263858789,0.3111436,642.79,641.65,3.10420082]
[1739263860583,0.3111436,642.79,641.73,1.14820082]
[1739263862991,0.3111436,642.79,641.65,1.956]
[1739263864987,0.3111436,642.79,641.66,0.28606804]
[1739263865388,1.62566812,642.78,641.66,0.28606804]
[1739263865589,0.31115813,642.76,641.66,0.28606804]
[1739263870194,0.31115813,642.76,641.67,0.28606741]
[1739263870387,0.31115813,642.76,641.66,0.28606741]
[1739263870590,0.31115813,642.76,641.67,0.28606741]
[1739263870791,0.31115813,642.76,641.66,0.28606741]
[1739263870991,0.31115813,642.76,641.67,0.28606741]
[1739263871193,0.31115813,642.76,641.65,1.956]
[1739263871392,0.31115813,642.76,641.66,0.28606592]
[1739263873699,0.31115813,642.76,641.65,1.956]
[1739263873896,0.31115813,642.76,641.66,0.28606997]
[1739263875998,0.31115813,642.76,641.65,1.956]
[1739263876394,0.31115813,642.76,641.66,0.2860687]
[1739263876596,0.31115813,642.76,641.65,1.956]
[1739263877199,0.31115813,642.76,641.66,0.28606978]
[1739263877598,0.31115813,642.76,641.65,1.956]
[1739263877795,0.31115813,642.76,641.66,0.2860686]
[1739263878099,0.31115813,642.76,641.65,1.956]
[1739263878695,0.31115813,642.76,641.66,0.28606831]
[1739263886108,0.31115813,642.76,641.65,1.956]
[1739263935753,1.39107338,642.65,641.65,1.956]
[1739263935954,0.31122107,642.63,641.65,1.956]
[1739263936351,1.62660528,642.62,641.65,1.956]
[1739263936649,0.3112356,642.6,641.65,1.956]
[1739263969973,1.39107338,642.54,641.65,1.956]
[1739263970175,0.31127435,642.52,641.65,1.956]
[1739263970774,1.62681439,642.51,641.65,1.956]
[1739263971068,0.31128889,642.49,641.65,1.956]
[1739263972375,1.39107338,642.37,641.65,1.956]
[1739263972571,0.31135188,642.36,641.65,1.956]
[1739263980978,1.6268334,642.35,641.65,1.956]
[1739263981178,0.31136158,642.34,641.65,1.956]
[1739263991087,0.31136158,642.34,641.65,0.07969862]
[1739263992186,0.31136158,642.34,641.65,0.99469862]
[1739264017807,1.9378845,642.34,641.65,0.99469862]
[1739264021111,0.31136158,642.34,641.65,0.99469862]
[1739264026105,0.31136158,642.34,641.66,0.28603129]
[1739264029915,0.31136158,642.34,641.67,0.28604482]
[1739264030115,0.31136158,642.34,641.66,0.28604482]
[1739264030416,0.31136158,642.34,641.67,0.28604482]
[1739264030616,0.31136158,642.34,641.66,0.28604482]
[1739264030811,0.31136158,642.34,641.67,0.28604482]
[1739264031011,0.31136158,642.34,641.66,0.28604482]
[1739264031316,0.31136158,642.34,641.67,0.28604482]
[1739264031512,0.31136158,642.34,641.65,0.99469862]
[1739264031513,0.31136158,642.34,641.66,0.28604482]
[1739264034722,0.31136158,642.34,641.65,0.99469862]
[1739264038622,0.31136158,642.34,641.66,0.28609425]
[1739264038822,0.31136158,642.34,641.65,0.99469862]
[1739264039022,0.31136158,642.34,641.66,0.28606794]
[1739264041826,0.31136158,642.34,641.65,0.99469862]
[1739264042125,0.31136158,642.34,641.66,0.28607207]
[1739264042524,0.31136158,642.34,641.65,0.99469862]
[1739264043228,0.31136158,642.34,641.66,0.28608423]
[1739264045429,0.31136158,642.34,641.67,0.28605721]
[1739264045626,0.31136158,642.34,641.66,0.28605721]
[1739264045822,0.31136158,642.34,641.67,0.28605721]
[1739264046129,0.31136158,642.34,641.68,0.28605721]
[1739264046423,0.31136158,642.34,641.69,0.28605721]
[1739264046729,0.31136158,642.34,641.7,0.28605721]
[1739264047029,0.31136158,642.34,641.71,0.28605721]
[1739264047328,0.31136158,642.34,641.72,0.28605721]
[1739264047531,0.31136158,642.34,641.66,0.28605721]
[1739264047723,0.31136158,642.34,641.65,0.99469862]
[1739264047927,0.31136158,642.34,641.66,0.28603243]
[1739264057036,0.31136158,642.34,641.88,1.16048755]
[1739264061235,0.31136158,642.34,641.65,0.99469862]
[1739264065338,1.62582002,642.33,641.65,0.99469862]
[1739264065539,0.31137127,642.32,641.65,0.99469862]
[1739264100467,0.31137127,642.32,639.85,1.16048755]
[1739264100767,0.31137127,642.32,639.86,0.93760184]
[1739264100968,0.31137127,642.32,639.87,0.28670477]
[1739264101267,0.31137127,642.32,639.88,0.28670477]
[1739264101467,0.31137127,642.32,639.89,0.28670477]
[1739264101769,0.31137127,642.32,641.65,2.188]
[1739264101966,0.31137127,642.32,639.9,0.28670477]
[1739264102166,0.31137127,642.32,639.91,0.28672023]
[1739264102463,0.31137127,642.32,639.92,0.2867164]
[1739264102666,0.31137127,642.32,639.93,0.2867164]
[1739264102862,0.31137127,642.32,639.94,0.2867164]
[1739264103064,0.31137127,642.32,639.95,0.2867164]
[1739264103264,0.31137127,642.32,641.65,2.244]
[1739264104769,1.39908945,642.15,641.65,2.244]
[1739264104969,0.31145856,642.14,641.65,2.244]
[1739264105470,1.93933199,642.14,641.65,2.244]
[1739264116571,1.93933199,642.14,641.65,0.15495542]
[1739264117772,1.93933199,642.14,640.33,0.64893591]
[1739264117973,1.93933199,642.14,641.65,0.719]
[1739264118372,1.93933199,642.14,639.72,1.16048755]
[1739264118576,1.93933199,642.14,639.73,1.24799244]
[1739264118876,1.93933199,642.14,639.74,1.24798755]
[1739264119076,1.93933199,642.14,639.75,1.24798266]
[1739264119278,1.93933199,642.14,639.76,0.93536055]
[1739264119478,1.93933199,642.14,639.77,0.59917613]
[1739264119777,1.93933199,642.14,641.65,0.675]
[1739264120173,1.93933199,642.14,641.65,1.98]
[1739264120772,1.93933199,642.14,641.65,0.19921202]
[1739264121575,1.39908945,642.03,641.65,0.19921202]
[1739264121878,0.31151677,642.02,641.65,0.94321202]
[1739264122179,1.94031721,642.02,641.65,0.94321202]
[1739264126777,1.94031721,642.02,641.65,0.12024441]
[1739264126979,1.94031721,642.02,640.24,1.07401921]
[1739264127179,1.94031721,642.02,640.25,0.28661699]
[1739264127480,1.94031721,642.02,640.26,0.28661699]
[1739264127673,1.94031721,642.02,640.09,1.16048755]
[1739264127674,1.94031721,642.02,640.27,0.28661699]
[1739264127878,1.94031721,642.02,640.1,0.28661699]
[1739264128079,1.94031721,642.02,641.65,0.061]
[1739264128280,1.94031721,642.02,641.65,0.773]
[1739264128480,1.94031721,642.02,640.11,1.05160922]
[1739264128676,1.94031721,642.02,640.12,1.05160922]
[1739264128982,1.94031721,642.02,640.13,0.28662044]
[1739264129381,1.94031721,642.02,640.11,0.28662044]
[1739264129583,1.94031721,642.02,640.12,0.28662044]
[1739264129777,1.94031721,642.02,641.65,0.716]
[1739264132783,1.94031721,642.02,641.65,0.10018327]
[1739264135179,1.94031721,642.02,639.92,1.16048755]
[1739264135383,1.94031721,642.02,639.93,0.93543636]
[1739264135583,1.94031721,642.02,639.94,0.28660323]
[1739264135784,1.94031721,642.02,639.95,0.28660323]
[1739264135985,1.94031721,642.02,639.96,0.28660323]
[1739264136287,1.94031721,642.02,641.65,0.713]
[1739264136785,1.94031721,642.02,639.92,1.16048755]
[1739264136981,1.94031721,642.02,639.93,0.93512846]
[1739264137185,1.94031721,642.02,639.93,1.99763582]
[1739264137486,1.94031721,642.02,639.94,1.99763582]
[1739264137691,1.94031721,642.02,639.95,0.93512846]
[1739264137885,1.94031721,642.02,641.65,0.868]
[1739264138381,1.94031721,642.02,639.92,2.26089291]
[1739264138584,1.94031721,642.02,639.93,0.93526941]
[1739264138778,1.94031721,642.02,639.94,0.28659328]
[1739264138985,1.94031721,642.02,639.95,0.28659328]
[1739264139182,1.94031721,642.02,639.99,1.16048755]
[1739264139183,1.39908945,642.01,639.99,1.16048755]
[1739264139387,0.31157015,641.91,640.0,0.93526941]
[1739264139882,0.31157015,641.91,640.01,1.06339379]
[1739264140086,1.6288322,641.9,640.02,0.93526941]
[1739264140283,0.31158471,641.88,640.03,1.06339379]
[1739264140485,0.31158471,641.88,640.04,0.93526941]
[1739264140689,0.31158471,641.88,640.05,1.06339379]
[1739264140989,0.31158471,641.88,640.06,0.93526941]
[1739264141182,0.31158471,641.88,640.07,0.28659328]
[1739264141383,0.31158471,641.88,640.08,0.28659328]
[1739264141587,0.31158471,641.88,640.09,0.28659328]
[1739264141784,0.31158471,641.88,640.1,0.28659328]
[1739264141984,0.31158471,641.88,640.11,0.28659328]
[1739264142288,0.31158471,641.88,640.12,0.28659186]
[1739264142482,0.31158471,641.88,640.13,0.28659186]
[1739264142689,0.31158471,641.88,640.13,0.93544527]
[1739264143190,0.31158471,641.88,640.14,1.06339379]
[1739264143490,0.31158471,641.88,640.15,0.28659186]
[1739264144290,0.31158471,641.88,640.16,1.06339379]
[1739264144487,0.31158471,641.88,640.17,0.28659186]
[1739264144793,0.31158471,641.88,640.4,1.16048755]
[1739264145092,0.31158471,641.88,640.41,1.34998565]
[1739264145286,0.31158471,641.88,640.42,0.28659186]
[1739264145487,0.31158471,641.88,640.41,1.06339379]
[1739264145885,0.31158471,641.88,640.43,1.06339379]
[1739264146501,0.31158471,641.88,640.41,1.06339379]
[1739264147496,0.31158471,641.88,640.22,1.06339379]
[1739264147698,0.31158471,641.88,640.23,0.286644]
[1739264147995,0.31158471,641.88,640.24,1.06339379]
[1739264148196,0.31158471,641.88,640.25,0.286644]
[1739264148398,0.31158471,641.88,640.25,1.35003779]
[1739264148598,0.31158471,641.88,640.26,0.286644]
[1739264149395,0.31158471,641.88,640.27,1.06339379]
[1739264149592,0.31158471,641.88,640.28,0.28664501]
[1739264149797,0.31158471,641.88,640.28,1.3500388]
[1739264149993,0.31158471,641.88,640.29,0.28664501]
[1739264150396,0.31158471,641.88,640.3,1.06339379]
[1739264151001,0.31158471,641.88,640.31,1.06339379]
[1739264151403,0.31158471,641.88,640.21,1.06339379]
[1739264151603,0.31158471,641.88,640.22,0.28666715]
[1739264152104,0.31158471,641.88,640.23,1.06339379]
[1739264152305,0.31158471,641.88,640.24,0.28666715]
[1739264152604,0.31158471,641.88,640.25,1.06339379]
[1739264152802,0.31158471,641.88,640.26,0.28666715]
[1739264153200,0.31158471,641.88,640.27,0.28666752]
[1739264153402,0.31158471,641.88,640.27,1.06339379]
[1739264153598,0.31158471,641.88,640.28,0.28666752]
[1739264154100,0.31158471,641.88,640.29,1.06339379]
[1739264154302,0.31158471,641.88,640.3,0.28666752]
[1739264154998,0.31158471,641.88,640.31,1.06339379]
[1739264155206,0.31158471,641.88,640.32,0.28666752]
[1739264155699,0.31158471,641.88,640.33,1.06339379]
[1739264155903,0.31158471,641.88,640.34,0.28666752]
[1739264156403,0.31158471,641.88,640.35,1.0761061]
[1739264156601,0.31158471,641.88,640.36,0.28666752]
[1739264156801,0.31158471,641.88,640.35,1.0761061]
[1739264156998,0.31158471,641.88,640.36,1.0761061]
[1739264157600,0.31158471,641.88,640.18,1.0761061]
[1739264158106,0.31158471,641.88,640.19,1.36272018]
[1739264158303,0.31158471,641.88,640.19,1.0761061]
[1739264158707,0.31158471,641.88,640.17,1.16048755]
[1739264158708,0.31158471,641.88,640.2,1.0761061]
[1739264159303,0.31158471,641.88,640.21,1.0761061]
[1739264160201,0.31158471,641.88,640.22,1.0761061]
[1739264160803,0.31158471,641.88,640.23,1.0761061]
[1739264161605,0.31158471,641.88,640.24,1.0761061]
[1739264162110,0.31158471,641.88,640.25,1.0761061]
[1739264162510,0.31158471,641.88,639.93,1.0761061]
[1739264162703,0.31158471,641.88,639.94,0.28671056]
[1739264163103,0.31158471,641.88,639.95,1.0761061]
[1739264163305,0.31158471,641.88,639.96,0.28671056]
[1739264163710,0.31158471,641.88,639.97,1.0761061]
[1739264163911,0.31158471,641.88,639.98,0.28671056]
[1739264164435,0.31158471,641.88,639.99,1.0761061]
[1739264164622,0.31158471,641.88,640.0,0.28671056]
[1739264164842,0.31158471,641.88,640.01,1.0761061]
[1739264165241,0.31158471,641.88,640.02,0.28674288]
[1739264165724,0.31158471,641.88,640.03,1.0761061]
[1739264165926,0.31158471,641.88,640.04,1.36284898]
[1739264166122,0.31158471,641.88,640.05,0.28674288]
[1739264166326,0.31158471,641.88,640.05,1.36284898]
[1739264166527,0.31158471,641.88,640.06,0.28674288]
[1739264166935,1.39908945,641.81,640.07,1.0761061]
[1739264167136,0.31162841,641.79,640.08,0.28674288]
[1739264167827,0.31162841,641.79,640.09,1.0761061]
[1739264168021,0.31162841,641.79,640.1,0.28674288]
[1739264168524,0.31162841,641.79,640.11,1.0761061]
[1739264168823,0.31162841,641.79,640.12,0.28673598]
[1739264169912,0.31162841,641.79,640.13,1.0761061]
[1739264170105,0.31162841,641.79,640.14,0.28673598]
[1739264170509,0.31162841,641.79,640.15,1.0761061]
[1739264170709,0.31162841,641.79,640.16,0.28673598]
[1739264171005,0.31162841,641.79,640.16,1.36284208]
[1739264171206,0.31162841,641.79,640.17,0.28673598]
[1739264171908,0.31162841,641.79,640.18,1.0761061]
[1739264172105,0.31162841,641.79,640.19,0.28673598]
[1739264172410,0.31162841,641.79,640.2,1.0761061]
[1739264172705,0.31162841,641.79,640.21,0.28673598]
[1739264172904,0.31162841,641.79,640.21,1.36284208]
[1739264173109,0.31162841,641.79,640.22,0.28673598]
[1739264173503,0.31162841,641.79,640.23,1.0761061]
[1739264173709,0.31162841,641.79,640.24,0.28673598]
[1739264173906,0.31162841,641.79,640.24,1.0761061]
[1739264174508,0.31162841,641.79,640.25,1.0761061]
[1739264175007,0.31162841,641.79,640.26,1.0761061]
[1739264175411,0.31162841,641.79,640.27,1.0761061]
[1739264176011,0.31162841,641.79,640.28,1.0761061]
[1739264176407,0.31162841,641.79,640.29,1.0761061]
[1739264177013,0.31162841,641.79,640.3,1.0761061]
[1739264177809,0.31162841,641.79,640.31,1.0761061]
[1739264178411,0.31162841,641.79,640.32,1.0761061]
[1739264178811,0.31162841,641.79,640.33,0.28665401]
[1739264179213,0.31162841,641.79,640.33,1.36276011]
[1739264179414,0.31162841,641.79,640.33,1.0761061]
[1739264179615,0.31162841,641.79,640.34,1.36275974]
[1739264179807,0.31162841,641.79,640.35,0.28665364]
[1739264180007,0.31162841,641.79,640.36,1.0761061]
[1739264180207,0.31162841,641.79,640.37,0.28665364]
[1739264180812,0.31162841,641.79,640.38,1.0761061]
[1739264181012,0.31162841,641.79,640.39,0.28665364]
[1739264181206,0.31162841,641.79,640.4,0.28665428]
[1739264181409,0.31162841,641.79,640.41,1.0761061]
[1739264181809,0.31162841,641.79,640.42,1.0761061]
[1739264182314,0.31162841,641.79,640.43,1.0761061]
[1739264182911,0.31162841,641.79,640.44,1.0761061]
[1739264183313,0.31162841,641.79,640.45,1.0761061]
[1739264183914,0.31162841,641.79,640.46,1.0761061]
[1739264184417,0.31162841,641.79,640.1,1.0761061]
[1739264184616,0.31162841,641.79,640.11,0.286646]
[1739264185016,0.31162841,641.79,640.09,1.16048755]
[1739264185017,0.31162841,641.79,640.12,0.286646]
[1739264185210,0.31162841,641.79,640.13,0.286646]
[1739264185416,0.31162841,641.79,640.1,0.286646]
[1739264185618,1.6289974,641.78,640.11,0.286646]
[1739264185917,0.31164298,641.76,640.14,1.07646164]
[1739264186115,0.31164298,641.76,640.15,0.286646]
[1739264186418,0.31164298,641.76,640.15,1.36310764]
[1739264186617,0.31164298,641.76,640.16,0.286646]
[1739264186819,0.31164298,641.76,640.16,1.36310764]
[1739264187119,0.31164298,641.76,640.17,1.36310764]
[1739264187418,0.31164298,641.76,640.18,0.286646]
[1739264187613,0.31164298,641.76,640.18,1.36310764]
[1739264187811,0.31164298,641.76,640.19,0.286646]
[1739264188117,0.31164298,641.76,640.2,1.07646164]
[1739264188418,0.31164298,641.76,640.21,0.2867112]
[1739264189011,0.31164298,641.76,640.22,1.07646164]
[1739264189217,0.31164298,641.76,640.23,0.2867112]
[1739264189519,0.31164298,641.76,640.24,1.07646164]
[1739264189719,0.31164298,641.76,640.25,0.2867112]
[1739264190419,0.31164298,641.76,640.26,1.07646164]
[1739264191118,0.31164298,641.76,640.08,1.07646164]
[1739264191418,0.31164298,641.76,639.99,1.07646164]
[1739264191618,0.31164298,641.76,640.0,0.28678115]
[1739264192020,0.31164298,641.76,640.01,1.07646164]
[1739264192220,0.31164298,641.76,640.02,0.28678115]
[1739264192620,0.31164298,641.76,640.03,1.07646164]
[1739264192916,0.31164298,641.76,640.04,0.28678115]
[1739264193421,0.31164298,641.76,640.05,1.07646164]
[1739264193623,0.31164298,641.76,640.06,0.28678115]
[1739264193817,0.31164298,641.76,640.05,1.07646164]
[1739264194018,0.31164298,641.76,640.06,0.28678012]
[1739264194218,0.31164298,641.76,639.81,0.28678012]
[1739264194422,0.31164298,641.76,640.07,1.07646164]
[1739264195120,0.31164298,641.76,639.83,1.07646164]
[1739264195323,0.31164298,641.76,639.84,0.28677789]
[1739264195517,0.31164298,641.76,639.85,0.2867944]
[1739264195723,0.31164298,641.76,639.86,0.2867944]
[1739264196225,0.31164298,641.76,639.87,1.36325722]
[1739264196426,0.31164298,641.76,639.88,0.28679558]
[1739264196819,0.31164298,641.76,639.89,1.07646164]
[1739264197022,0.31164298,641.76,639.9,0.28679558]
[1739264197419,0.31164298,641.76,639.91,0.28680862]
[1739264197719,0.31164298,641.76,639.92,0.28680862]
[1739264198119,0.31164298,641.76,639.93,1.07646164]
[1739264198325,0.31164298,641.76,639.94,0.28680862]
[1739264198725,0.31164298,641.76,639.95,1.07646164]
[1739264198924,0.31164298,641.76,639.96,0.28680862]
[1739264199121,0.31164298,641.76,639.97,1.07646164]
[1739264199320,0.31164298,641.76,639.98,0.28680222]
[1739264200324,0.31164298,641.76,639.99,1.07646164]
[1739264200621,0.31164298,641.76,640.0,0.28680222]
[1739264201428,0.31164298,641.76,640.01,1.07646164]
[1739264201727,0.31164298,641.76,640.02,0.28680222]
[1739264202519,0.31164298,641.76,640.03,1.07646164]
[1739264202723,0.31164298,641.76,640.04,0.28679348]
[1739264203323,0.31164298,641.76,640.05,1.07646164]
[1739264203628,0.31164298,641.76,640.06,0.28679348]
[1739264204029,0.31164298,641.76,640.07,1.07646164]
[1739264205029,0.31164298,641.76,639.9,1.07646164]
[1739264205324,0.31164298,641.76,639.91,0.2867458]
[1739264205924,0.31164298,641.76,639.92,1.07646164]
[1739264206523,0.31164298,641.76,639.93,0.28680129]
[1739264206727,0.31164298,641.76,639.94,1.36326293]
[1739264207058,0.31164298,641.76,639.95,0.28680129]
[1739264207261,0.31164298,641.76,639.95,1.36326293]
[1739264207550,0.31164298,641.76,639.96,1.36326293]
[1739264207848,0.31164298,641.76,639.97,0.28680129]
[1739264208042,0.31164298,641.76,639.98,1.07646164]
[1739264208251,0.31164298,641.76,639.99,0.28681633]
[1739264208759,0.31164298,641.76,640.0,1.07646164]
[1739264209053,0.31164298,641.76,640.01,0.28681633]
[1739264210250,0.31164298,641.76,640.02,1.07646164]
[1739264211329,0.31164298,641.76,640.03,0.28681633]
[1739264211526,0.31164298,641.76,640.04,1.07646164]
[1739264211934,1.39908945,641.63,640.04,1.07646164]
[1739264212132,0.31171583,641.61,640.04,1.07646164]
[1739264212533,1.62984935,641.6,639.62,1.07646164]
[1739264212734,0.31173041,641.58,639.62,1.07646164]
[1739264213132,0.31173041,641.58,639.59,1.07646164]
[1739264216439,0.31173041,641.58,639.6,0.28689649]
[1739264216930,0.31173041,641.58,639.61,1.07646164]
[1739264217332,0.31173041,641.58,639.62,0.28689312]
[1739264217530,0.31173041,641.58,639.62,1.36335476]
[1739264217731,0.31173041,641.58,639.63,0.28689312]
[1739264218139,0.31173041,641.58,639.64,1.07646164]
[1739264218333,0.31173041,641.58,639.65,0.28689312]
[1739264218531,0.31173041,641.58,639.65,1.36335476]
[1739264218836,0.31173041,641.58,639.66,0.28689312]
[1739264219136,0.31173041,641.58,639.67,1.07646164]
[1739264219535,0.31173041,641.58,639.68,1.36331158]
[1739264219738,0.31173041,641.58,639.69,0.28684994]
[1739264220338,0.31173041,641.58,639.7,1.07646164]
[1739264220531,0.31173041,641.58,639.71,0.28684994]
[1739264220734,0.31173041,641.58,639.72,1.07646164]
[1739264221039,0.31173041,641.58,639.73,0.28684994]
[1739264221439,0.31173041,641.58,639.74,1.07646164]
[1739264221635,0.31173041,641.58,639.75,0.28684994]
[1739264221838,0.31173041,641.58,639.75,1.36331158]
[1739264222037,0.31173041,641.58,639.76,0.28684994]
[1739264222442,0.31173041,641.58,639.77,1.07646164]
[1739264222636,0.31173041,641.58,639.78,0.28684994]
[1739264223041,0.31173041,641.58,639.79,1.07646164]
[1739264223242,0.31173041,641.58,639.8,0.28684994]
[1739264223542,0.31173041,641.58,639.81,1.07646164]
[1739264223738,0.31173041,641.58,639.82,0.28684994]
[1739264223937,0.31173041,641.58,639.83,1.07646164]
[1739264224139,0.31173041,641.58,639.84,0.28689177]
[1739264224541,1.39908945,641.56,639.84,0.28689177]
[1739264224762,0.31174985,641.54,639.85,1.07646164]
[1739264224953,0.31174985,641.54,639.86,0.28689177]
[1739264225375,0.31174985,641.54,639.87,1.07646164]
[1739264225573,1.63015474,641.53,639.87,1.07646164]
[1739264225772,0.31176443,641.51,639.88,0.28691469]
[1739264226215,0.31176443,641.51,639.56,0.28691469]
[1739264226370,0.31176443,641.51,639.57,0.286924]
[1739264226572,0.31176443,641.51,639.56,0.286924]
[1739264226896,0.31176443,641.51,639.58,1.07512319]
[1739264227165,1.39908945,641.49,639.59,0.286924]
[1739264227359,0.31178387,641.47,639.59,1.36204719]
[1739264230647,0.31183734,641.36,639.63,0.286924]
[1739264230847,0.31183734,641.36,639.64,1.07470698]
[1739264231141,0.31183734,641.36,639.65,1.36166344]
[1739264231345,0.31183734,641.36,639.66,0.28695646]
[1739264231546,0.31183734,641.36,639.67,1.07470698]
[1739264231747,0.31183734,641.36,639.68,0.28695646]
[1739264232247,0.31183734,641.36,639.69,1.07470698]
[1739264232450,0.31183734,641.36,639.7,0.28695646]
[1739264232750,0.31183734,641.36,639.71,1.07470698]
[1739264232952,0.31183734,641.36,639.72,0.28695646]
[1739264233451,0.31183734,641.36,639.73,0.28695646]
[1739264233651,0.31183734,641.36,639.53,0.28695646]
[1739264233851,0.31183734,641.36,639.54,0.28695646]
[1739264234053,0.31183734,641.36,639.55,0.28695646]
[1739264234249,0.31183734,641.36,639.56,1.33669491]
[1739264234450,0.31183734,641.36,639.57,0.28695646]
[1739264234746,0.31183734,641.36,639.57,1.33669491]
[1739264234953,0.31183734,641.36,639.58,0.28695646]
[1739264235253,0.31183734,641.36,639.58,1.33669491]
[1739264235453,0.31183734,641.36,639.59,0.28695646]
[1739264235954,1.63057484,641.35,639.59,0.28695646]
[1739264236154,0.31185193,641.33,639.6,1.04973845]
[1739264236355,0.31185193,641.33,639.61,0.28695031]
[1739264236854,0.31185193,641.33,639.62,1.04973845]
[1739264237156,0.31185193,641.33,639.63,0.28695031]
[1739264237756,0.31185193,641.33,639.64,1.04973845]
[1739264237954,0.31185193,641.33,639.65,0.28695031]
[1739264238155,0.31185193,641.33,639.66,1.04973845]
[1739264238358,0.31185193,641.33,639.67,0.28695031]
[1739264239058,0.31185193,641.33,639.68,1.04973845]
[1739264239249,0.31185193,641.33,639.69,0.28695031]
[1739264239451,0.31185193,641.33,639.69,1.33668876]
[1739264239751,0.31185193,641.33,639.7,0.28688583]
[1739264239951,0.31185193,641.33,639.7,1.33662428]
[1739264240156,0.31185193,641.33,639.71,0.28688583]
[1739264240352,0.31185193,641.33,639.72,1.04973845]
[1739264240557,0.31185193,641.33,639.73,0.28688583]
[1739264243662,0.31185193,641.33,639.6,0.28688583]
[1739264243862,0.31185193,641.33,639.61,0.28688583]
[1739264244063,0.31185193,641.33,639.62,0.28688583]
[1739264244262,0.31185193,641.33,639.58,0.28688583]